bitfinex/quotes_ETHUSD_20250810
["timestamp","ask_amount","ask_price","bid_price","bid_amount"]
[1754806500215,0.55,4224.0,4223.6,0.041]
[1754806500452,1.89407391,4223.7,4223.6,0.041]
[1754806500646,6.70107391,4223.7,4223.6,0.041]
[1754806500943,7.67978758,4223.7,4223.6,0.041]
[1754806501163,6.33571367,4223.7,4223.3,0.001]
[1754806501457,2.01260845,4223.4,4223.3,0.001]
[1754806501615,3.82060845,4223.4,4223.3,0.4945]
[1754806502045,3.82060845,4223.4,4223.3,0.9672]
[1754806503647,3.82060845,4223.4,4223.3,0.001]
[1754806503648,8.11271402,4223.4,4223.3,0.001]
[1754806503850,0.55,4223.2,4222.7,0.4727]
[1754806504017,4.89438787,4223.0,4222.7,0.4727]
[1754806504220,6.82083273,4222.9,4222.4,0.001]
[1754806504442,8.29735479,4222.9,4222.4,0.001]
[1754806504655,17.51257351,4222.9,4222.4,0.001]
[1754806504855,0.55,4222.6,4222.4,0.001]
[1754806505022,7.4006155,4222.5,4222.4,0.001]
[1754806505341,7.37101219,4222.5,4222.4,0.001]
[1754806505540,8.77366565,4222.5,4222.4,0.001]
[1754806505744,8.39241465,4222.5,4222.4,0.001]
[1754806506359,6.58441465,4222.5,4222.4,0.4737]
[1754806506526,2.022249,4222.5,4222.4,0.9672]
[1754806506731,3.91686119,4222.5,4222.4,0.9672]
[1754806507258,3.91686119,4222.5,4222.4,0.4737]
[1754806507425,4.85380388,4222.5,4222.4,0.4737]
[1754806509055,2.021249,4222.5,4222.4,0.9672]
[1754806509479,3.91586119,4222.5,4222.4,0.001]
[1754806509637,4.46586119,4222.5,4222.4,0.001]
[1754806509823,4.9715645,4222.5,4222.4,0.001]
[1754806510030,6.4819724,4222.5,4222.4,0.001]
[1754806510229,9.45236909,4222.5,4222.4,0.001]
[1754806510430,7.93579169,4222.1,4222.0,1e-08]
[1754806510633,7.93579169,4222.1,4221.6,0.04]
[1754806510634,2.44497122,4221.7,4221.6,0.04]
[1754806510876,7.37537122,4221.7,4221.6,0.04]
[1754806511071,8.8769076,4221.7,4221.6,4e-08]
[1754806511374,2.44515078,4221.3,4220.9,0.4727]
[1754806511536,7.25715078,4221.3,4220.9,0.4727]
[1754806511730,7.37555078,4221.3,4220.9,0.4727]
[1754806512133,7.37555078,4221.3,4220.6,0.5127]
[1754806512372,7.37555078,4221.3,4221.2,1.22014328]
[1754806512575,8.35102818,4221.3,4221.2,1.22014328]
[1754806512731,8.35102818,4221.3,4221.2,1.69284328]
[1754806512933,4.9304,4221.3,4221.2,2.18634328]
[1754806513136,1.9304,4221.3,4221.2,2.18634328]
[1754806513350,3.82555078,4221.3,4221.2,1.22014328]
[1754806513730,1.9304,4221.3,4221.2,1.22014328]
[1754806514042,1.9304,4221.3,4220.6,0.04]
[1754806514043,4.37555078,4221.3,4220.6,0.04]
[1754806514245,0.1184,4220.7,4220.6,0.04]
[1754806514463,3.85743613,4220.7,4220.6,0.04]
[1754806514865,3.86547366,4220.7,4220.6,0.04]
[1754806515031,4.41547366,4220.7,4220.6,0.04]
[1754806515231,4.38585772,4220.7,4220.6,0.04]
[1754806515433,5.01397698,4220.7,4220.6,0.04]
[1754806515630,5.01397698,4220.7,4219.6,0.04]
[1754806515631,0.55,4220.6,4219.6,0.04]
[1754806515829,2.01408194,4220.2,4219.7,0.4727]
[1754806516059,1.816,4220.1,4219.8,0.9662]
[1754806516265,1.816,4220.0,4219.9,0.4727]
[1754806516638,1.9344,4220.0,4219.9,0.4727]
[1754806517750,0.1184,4220.0,4219.9,0.9687]
[1754806517947,1.9334,4220.0,4219.9,2.86447952]
[1754806518256,1.9334,4220.0,4219.9,0.4727]
[1754806519374,1.9334,4220.0,4219.6,0.4767]
[1754806519540,1.815,4220.0,4219.7,0.9327]
[1754806519736,1.815,4220.0,4219.8,0.4367]
[1754806520155,3.955054,4220.0,4219.6,0.04]
[1754806520349,0.1184,4219.9,4219.7,0.4367]
[1754806520549,0.1184,4219.9,4219.8,0.4367]
[1754806520770,0.1184,4219.9,4219.6,0.04]
[1754806520968,0.1184,4219.9,4219.7,0.4367]
[1754806521343,0.39898309,4219.9,4219.7,0.4367]
[1754806521983,0.39898309,4219.9,4219.6,0.04]
[1754806522153,5.44586937,4219.7,4219.6,0.04]
[1754806522341,5.44586937,4219.7,4219.6,1e-08]
[1754806522545,1.89595923,4219.5,4219.4,0.001]
[1754806522846,4.43790209,4219.5,4219.4,0.001]
[1754806523053,7.46752645,4219.5,4219.4,0.001]
[1754806523246,7.43790209,4219.5,4219.4,0.001]
[1754806524946,7.44594431,4219.5,4219.4,0.001]
[1754806525766,7.44594431,4219.5,4219.4,0.4377]
[1754806526295,7.44594431,4219.5,4219.4,0.22073246]
[1754806526467,7.94194431,4219.5,4219.4,0.22073246]
[1754806526945,7.94194431,4219.5,4219.4,0.65743246]
[1754806527758,4.22898508,4219.5,4219.4,0.65743246]
[1754806527961,4.22898508,4219.5,4219.4,1.15343246]
[1754806527962,2.32104222,4219.5,4219.4,1.15343246]
[1754806528257,2.313,4219.5,4219.4,0.65743246]
[1754806528857,4.20895923,4219.5,4219.4,0.65743246]
[1754806529282,0.496,4219.5,4219.4,1.15343246]
[1754806529598,1.816,4219.5,4219.4,3.04943663]
[1754806529761,1.816,4219.5,4219.4,1.15343246]
[1754806530086,3.71195923,4219.5,4219.4,0.65743246]
[1754806530287,4.27273819,4219.5,4219.4,0.22073246]
[1754806530662,4.28078243,4219.5,4219.4,0.22073246]
[1754806532084,4.39918243,4219.5,4219.4,0.22073246]
[1754806532478,5.40678243,4219.5,4219.4,0.22129763]
[1754806532704,5.40678243,4219.5,4219.3,0.001]
[1754806532705,5.44600417,4219.4,4219.3,0.001]
[1754806532898,1.89631877,4218.7,4218.6,0.4777]
[1754806533076,3.71831877,4218.7,4218.6,0.69801705]
[1754806533478,3.71831877,4218.7,4218.6,0.26131705]
[1754806533479,4.26831877,4218.7,4218.6,0.26131705]
[1754806534210,4.29794875,4218.7,4218.6,0.26131705]
[1754806534375,4.26831877,4218.7,4218.6,0.26131705]
[1754806534723,4.26831877,4218.7,4217.6,0.04]
[1754806534724,0.55,4218.1,4217.6,0.04]
[1754806535013,5.51456837,4218.7,4217.6,0.04]
[1754806535014,1.822,4218.0,4217.6,0.04]
[1754806535214,1.89676838,4217.7,4217.6,0.04]
[1754806535391,4.26976838,4217.7,4217.6,0.04]
[1754806535774,7.26976838,4217.7,4217.6,0.04]
[1754806536019,2.44685832,4217.5,4217.4,0.004]
[1754806536511,0.55,4217.4,4216.6,0.04]
[1754806536701,3.55,4217.2,4216.6,0.04]
[1754806536903,0.55,4216.9,4216.6,0.04]
[1754806537102,1.824,4216.8,4216.6,0.4767]
[1754806537306,1.825,4216.7,4216.6,0.4767]
[1754806538413,2.19802485,4216.7,4216.6,0.04]
[1754806538788,1.825,4216.7,4216.6,0.4767]
[1754806539102,3.7222182,4216.7,4216.6,0.4767]
[1754806539303,1.89730819,4216.5,4216.4,0.004]
[1754806539490,0.57964544,4216.5,4215.7,0.004]
[1754806539689,1.825,4216.4,4215.8,0.9327]
[1754806539914,5.0625,4216.3,4215.9,0.4367]
[1754806540214,0.50631955,4216.2,4216.0,0.4367]
[1754806540378,0.00804563,4216.3,4216.1,0.496]
[1754806540577,1.825,4216.2,4216.1,1.89748819]
[1754806540782,0.00804563,4216.6,4215.7,0.004]
[1754806540978,2.52990035,4217.5,4216.4,1.89735319]
[1754806541178,2.52990035,4217.5,4215.8,11.14302106]
[1754806541179,0.00804953,4217.3,4216.5,0.9327]
[1754806541479,1.826,4217.4,4217.0,1.89706791]
[1754806541823,0.63304193,4218.0,4217.4,1.89689498]
[1754806541824,0.00804953,4218.0,4217.4,1.89689498]
[1754806541976,0.00804953,4218.0,4216.6,1.89726059]
[1754806541977,0.00804953,4218.0,4217.5,0.9327]
[1754806542180,1.827,4217.9,4217.5,0.9327]
[1754806542415,1.827,4217.9,4217.6,0.9327]
[1754806542712,1.89679888,4217.7,4216.5,0.9327]
[1754806542880,0.1184,4216.7,4216.6,0.9327]
[1754806543077,1.827,4216.7,4216.6,2.82996319]
[1754806543280,1.827,4216.7,4216.6,0.9327]
[1754806543509,1.827,4216.7,4216.6,2.82996319]
[1754806543691,0.1184,4216.9,4216.8,1.89717321]
[1754806543892,0.1184,4217.3,4217.2,1.89699326]
[1754806544104,1.9464,4217.3,4217.2,2.82969326]
[1754806544305,2.845,4218.2,4217.2,0.9327]
[1754806544629,1.828,4218.1,4217.5,1.84685809]
[1754806544922,2.2953,4218.1,4216.8,0.47271364]
[1754806545104,1.85863489,4218.0,4217.6,0.4367]
[1754806545431,0.1184,4217.4,4217.0,1.89707905]
[1754806545579,1.829,4217.3,4217.1,1.89703824]
[1754806545910,1.829,4217.3,4217.2,1.89699326]
[1754806546110,1.829,4217.3,4217.2,2.82969326]
[1754806546489,0.1184,4217.4,4217.2,0.9327]
[1754806546815,3.56505453,4218.2,4217.6,1.8968103]
[1754806547125,3.557005,4218.2,4217.9,1.89667115]
[1754806547283,1.9464,4218.1,4218.0,1.15058138]
[1754806547478,2.4967405,4218.1,4218.0,0.22048138]
[1754806548099,4.39332901,4218.1,4218.0,0.22048138]
[1754806548303,5.612877,4218.1,4218.0,0.22048138]
[1754806548518,5.612877,4218.1,4218.0,1e-08]
[1754806548703,2.667425,4218.1,4218.0,1e-08]
[1754806548890,1.9554,4218.1,4218.0,0.46530001]
[1754806549116,1.9554,4218.1,4218.0,1e-08]
[1754806549117,0.1184,4218.1,4218.0,1e-08]
[1754806549320,1.9544,4218.1,4218.0,0.93010001]
[1754806549910,1.9544,4218.1,4218.0,0.9301]
[1754806550430,0.1184,4218.1,4218.0,0.9301]
[1754806550632,1.9544,4218.1,4218.0,0.9311]
[1754806551534,2.845,4218.2,4218.0,0.9311]
[1754806551829,1.835,4218.1,4218.0,2.82773347]
[1754806552020,1.835,4218.1,4218.0,1.89763347]
[1754806552601,1.835,4218.1,4218.0,2.82773347]
[1754806552797,2.845,4218.2,4218.1,1.89658851]
[1754806553129,4.681,4218.2,4218.1,2.82668851]
[1754806553330,0.1184,4218.6,4218.4,1.89641996]
[1754806553530,0.1184,4218.6,4218.2,0.9301]
[1754806553731,1.835,4218.5,4218.3,0.9301]
[1754806554028,1.835,4218.5,4218.4,0.9301]
[1754806554700,1.835,4218.5,4218.4,0.4653]
[1754806556438,2.21996821,4218.5,4218.0,0.001]
[1754806556741,0.1184,4218.1,4218.0,0.4663]
[1754806557527,0.1184,4218.1,4218.0,0.001]
[1754806558022,0.1184,4218.1,4218.0,0.4663]
[1754806559433,0.1184,4218.1,4218.0,0.9311]
[1754806559621,0.1184,4218.1,4218.0,2.82773347]
[1754806559809,1.9534,4218.1,4218.0,0.9311]
[1754806560455,1.9534,4218.1,4218.0,1.15216732]
[1754806561456,1.9534,4218.1,4218.0,0.68736732]
[1754806562112,0.1184,4218.1,4218.0,3.04880079]
[1754806562313,1.9524,4218.1,4218.0,1.15216732]
[1754806563419,1.834,4218.1,4218.0,0.68736732]
[1754806563609,0.04,4218.9,4218.0,1.15216732]
[1754806563812,0.04,4218.9,4218.2,1.89652412]
[1754806564045,1.833,4218.8,4218.3,0.22106732]
[1754806564227,1.833,4218.8,4218.4,1.15116732]
[1754806564525,1.93622984,4218.9,4218.5,0.68636732]
[1754806564526,1.833,4218.7,4218.5,0.68636732]
[1754806564740,0.04,4218.9,4218.6,0.22106732]
[1754806565045,0.04,4218.9,4218.5,0.4653]
[1754806565046,1.833,4218.8,4218.7,0.22106732]
[1754806565627,3.72927382,4218.8,4218.7,0.22106732]
[1754806566844,1.833,4218.8,4218.7,0.22106732]
[1754806567148,3.72927382,4218.8,4218.7,0.22106732]
[1754806567451,1.833,4218.8,4218.7,0.22106732]
[1754806567944,3.72927382,4218.8,4218.7,0.22106732]
[1754806568149,4.84159777,4218.8,4218.7,0.22106732]
[1754806568816,5.39159777,4218.8,4218.7,0.22106732]
[1754806569245,2.44658851,4218.1,4218.0,0.001]
[1754806569413,2.07965885,4218.1,4218.0,0.001]
[1754806569613,1.835,4218.1,4218.0,0.4663]
[1754806569854,3.73158851,4218.1,4218.0,0.4663]
[1754806570019,3.73158851,4218.1,4218.0,0.001]
[1754806570552,2.44703824,4217.1,4217.0,0.001]
[1754806570723,7.74708064,4217.1,4217.0,0.001]
[1754806570921,8.22692804,4217.1,4217.0,0.001]
[1754806571122,8.96232804,4217.1,4217.0,0.001]
[1754806571323,8.45283942,4217.1,4217.0,0.001]
[1754806573371,8.57123942,4217.1,4217.0,0.001]
[1754806573881,9.07976452,4217.1,4217.0,1e-08]
[1754806574040,9.07976452,4217.1,4215.6,0.04]
[1754806574041,1.89762322,4215.8,4215.6,0.04]
[1754806574235,3.74462322,4215.8,4215.6,0.04]
[1754806574439,3.86302322,4215.8,4215.6,0.04]
[1754806574839,1.9654,4215.8,4215.7,0.4693]
[1754806575259,3.86302322,4215.8,4215.7,0.004]
[1754806575460,1.9654,4215.8,4215.7,0.004]
[1754806575927,1.9654,4215.8,4215.7,0.4693]
[1754806576741,0.1184,4215.8,4215.7,0.4693]
[1754806576935,1.9664,4215.8,4215.7,0.9341]
[1754806577329,1.9654,4215.8,4215.7,0.9341]
[1754806578038,1.9654,4215.8,4215.7,0.4693]
[1754806578238,4.24932507,4215.8,4215.7,0.004]
[1754806578432,3.86302322,4215.8,4215.7,0.004]
[1754806578634,4.33742903,4215.8,4215.7,0.004]
[1754806579134,1.9654,4215.8,4215.7,0.004]
[1754806580557,4.33742903,4215.8,4215.7,0.004]
[1754806580735,5.0704815,4215.8,4215.7,0.004]
[1754806581325,5.5497815,4215.8,4215.7,0.004]
[1754806581528,5.0704815,4215.8,4215.7,0.004]
[1754806581750,0.85145247,4215.8,4215.7,0.22443878]
[1754806581953,1.9644,4215.8,4215.7,0.67013878]
[1754806582157,1.9644,4215.8,4215.7,0.22443878]
[1754806582364,4.33642903,4215.8,4215.7,0.22443878]
[1754806582667,1.9644,4215.8,4215.7,0.22443878]
[1754806583432,1.9644,4215.8,4215.7,0.67013878]
[1754806583633,1.9644,4215.8,4215.7,1.15443878]
[1754806583868,1.9644,4215.8,4215.7,3.5264517]
[1754806584033,1.9644,4215.8,4215.7,0.6700664]
[1754806584361,1.9644,4215.8,4215.7,0.2243664]
[1754806584362,2.04244,4215.8,4215.7,0.2243664]
[1754806585158,4.41446903,4215.8,4215.7,0.2243664]
[1754806585572,2.04244,4215.8,4215.7,0.2243664]
[1754806586149,4.41446903,4215.8,4215.7,0.2243664]
[1754806586358,0.19644,4215.8,4215.7,0.2243664]
[1754806586668,4.41346903,4215.8,4215.7,0.2243664]
[1754806587183,4.89276903,4215.8,4215.7,0.2243664]
[1754806587867,4.41346903,4215.8,4215.7,0.2243664]
[1754806588906,2.04144,4215.8,4215.7,0.2243664]
[1754806589263,4.41346903,4215.8,4215.7,0.2243664]
[1754806589540,7.41346903,4215.8,4215.7,0.2243664]
[1754806589759,7.41346903,4215.8,4215.7,0.004]
[1754806590237,5.56846903,4215.8,4215.7,0.004]
[1754806590442,8.44076903,4215.8,4215.7,0.004]
[1754806591656,7.96146903,4215.8,4215.7,0.004]
[1754806591868,5.56846903,4215.8,4215.7,0.004]
[1754806592172,7.41146903,4215.8,4215.7,0.004]
[1754806592385,8.44076903,4215.8,4215.7,0.2245712]
[1754806592673,8.44076903,4215.8,4215.7,0.004]
[1754806594371,8.55916903,4215.8,4215.7,0.004]
[1754806595448,6.23686903,4215.8,4215.7,0.004]
[1754806595663,8.08592001,4215.8,4215.7,0.004]
[1754806595870,8.66422001,4215.8,4215.7,0.004]
[1754806596053,2.37235043,4215.3,4214.8,0.009]
[1754806596262,2.37266789,4214.7,4213.8,0.1184]
[1754806596577,1.841,4214.6,4214.0,0.4457]
[1754806596778,1.841,4214.5,4214.1,0.70516286]
[1754806596964,21.72614895,4214.0,4213.3,10.21372274]
[1754806597149,1.841,4213.9,4213.7,0.1184]
[1754806597474,1.841,4213.9,4213.8,2.37315487]
[1754806597885,21.72614895,4214.0,4213.9,2.37309855]
[1754806598191,21.72614895,4214.0,4213.9,12.58682129]
[1754806598745,23.56714895,4214.0,4213.9,12.58682129]
[1754806599047,23.56714895,4214.0,4213.9,11.14372274]
[1754806599358,23.56714895,4214.0,4213.9,0.93]
[1754806600986,25.94019119,4214.0,4213.9,0.4457]
[1754806601345,23.56714895,4214.0,4213.9,0.4457]
[1754806601562,21.72614895,4214.0,4213.9,0.93]
[1754806601759,23.56614895,4214.0,4213.9,0.93]
[1754806601957,25.93919119,4214.0,4213.9,0.4457]
[1754806602285,2.37321119,4213.7,4213.6,0.04]
[1754806602496,4.21321119,4213.7,4213.6,0.04]
[1754806602847,21.72614895,4214.0,4213.6,0.4857]
[1754806603076,0.1184,4213.8,4213.6,0.97]
[1754806603278,2.37321119,4213.7,4213.6,0.04]
[1754806603690,4.21421119,4213.7,4213.6,0.04]
[1754806603847,1.841,4213.7,4213.6,0.04]
[1754806604275,1.84,4213.7,4213.6,0.04]
[1754806604884,2.49160199,4213.8,4213.6,0.04]
[1754806604885,0.1184,4213.8,4213.6,0.04]
[1754806605245,4.24387632,4213.7,4213.6,0.04]
[1754806605575,5.19527632,4213.7,4213.6,0.04]
[1754806605777,5.16561119,4213.7,4213.6,0.04]
[1754806606549,1.841,4213.7,4213.6,0.04]
[1754806606746,1.9594,4213.7,4213.6,0.04]
[1754806606948,4.80865187,4213.7,4213.6,0.04]
[1754806607179,5.28795187,4213.7,4213.6,0.04]
[1754806607353,4.27644068,4213.7,4213.6,0.04]
[1754806607557,0.1184,4213.7,4213.6,0.4765]
[1754806607758,1.9594,4213.7,4213.6,0.4765]
[1754806607957,0.1184,4213.7,4213.6,0.4765]
[1754806608196,1.842,4213.7,4213.6,0.9644]
[1754806608573,0.1184,4213.8,4213.6,0.9644]
[1754806608896,0.1184,4213.8,4213.7,0.9244]
[1754806609093,1.842,4213.8,4213.7,0.9244]
[1754806610269,1.842,4213.8,4213.6,0.04]
[1754806610469,2.37321119,4213.7,4213.6,0.04]
[1754806610672,2.40103947,4213.7,4213.6,0.04]
[1754806610984,3.28581119,4213.7,4213.6,0.04]
[1754806611188,6.28581119,4213.7,4213.6,0.04]
[1754806611692,6.2938638,4213.7,4213.6,0.04]
[1754806611897,8.61090448,4213.7,4213.6,0.04]
[1754806612297,7.69830448,4213.7,4213.6,0.04]
[1754806612500,6.54130448,4213.7,4213.6,0.04]
[1754806612800,6.53225187,4213.7,4213.6,0.04]
[1754806613399,7.00885187,4213.7,4213.6,0.04]
[1754806613963,10.00885187,4213.7,4213.6,0.04]
[1754806614198,10.44485187,4213.7,4213.6,0.04]
[1754806614588,10.01690448,4213.7,4213.6,0.04]
[1754806614789,9.54030448,4213.7,4213.6,0.04]
[1754806614991,4.21521119,4213.7,4213.6,0.04]
[1754806615193,4.21521119,4213.7,4213.6,1e-08]
[1754806615392,4.24487632,4213.7,4213.6,1e-08]
[1754806616104,4.21621119,4213.7,4213.6,1e-08]
[1754806617999,2.37321119,4213.7,4213.6,1e-08]
[1754806618208,6.53225187,4213.7,4213.6,1e-08]
[1754806618586,6.53225187,4213.7,4213.6,0.00100001]
[1754806619716,10.00885187,4213.7,4213.6,0.00100001]
[1754806620518,9.53225187,4213.7,4213.6,0.00100001]
[1754806620720,11.50226839,4213.7,4213.6,1e-08]
[1754806621022,11.51032392,4213.7,4213.6,1e-08]
[1754806621594,9.66832392,4213.7,4213.6,1e-08]
[1754806621913,11.50932392,4213.7,4213.6,1e-08]
[1754806622095,11.87551763,4213.7,4213.6,1e-08]
[1754806622296,10.03451763,4213.7,4213.6,1e-08]
[1754806622491,9.12191763,4213.7,4213.6,1e-08]
[1754806622720,10.04672392,4213.7,4213.6,1e-08]
[1754806623022,9.5393074,4213.7,4213.6,1e-08]
[1754806623328,9.53125187,4213.7,4213.6,1e-08]
[1754806623501,7.69025187,4213.7,4213.6,1e-08]
[1754806623702,9.53125187,4213.7,4213.6,1e-08]
[1754806624027,11.50140831,4213.7,4213.6,1e-08]
[1754806624189,12.13827579,4213.7,4213.6,1e-08]
[1754806624591,12.14633075,4213.7,4213.6,1e-08]
[1754806624787,11.51046327,4213.7,4213.6,1e-08]
[1754806625100,11.06607778,4213.7,4213.6,1e-08]
[1754806625302,8.20553274,4213.7,4213.6,1e-08]
[1754806625492,10.51607778,4213.7,4213.6,1e-08]
[1754806626013,10.95207778,4213.7,4213.6,1e-08]
[1754806626320,11.50207778,4213.7,4213.6,1e-08]
[1754806626489,9.66007778,4213.7,4213.6,1e-08]
[1754806626690,11.51013461,4213.7,4213.6,1e-08]
[1754806627292,9.66007778,4213.7,4213.6,1e-08]
[1754806627493,11.50507778,4213.7,4213.6,1e-08]
[1754806627722,11.06907778,4213.7,4213.6,1e-08]
[1754806628524,11.50507778,4213.7,4213.6,1e-08]
[1754806628726,9.66007778,4213.7,4213.6,1e-08]
[1754806628956,11.50507778,4213.7,4213.6,1e-08]
[1754806630104,11.51313461,4213.7,4213.6,1e-08]
[1754806630494,9.66007778,4213.7,4213.6,1e-08]
[1754806630722,11.06807778,4213.7,4213.6,1e-08]
[1754806631215,11.07613417,4213.7,4213.6,1e-08]
[1754806631422,9.23213417,4213.7,4213.6,1e-08]
[1754806631615,11.07613417,4213.7,4213.6,1e-08]
[1754806631811,10.59953417,4213.7,4213.6,1e-08]
[1754806632028,8.75553417,4213.7,4213.6,1e-08]
[1754806632227,10.21070826,4213.7,4213.6,1e-08]
[1754806632424,7.81670826,4213.7,4213.6,1e-08]
[1754806632629,9.66070826,4213.7,4213.6,1e-08]
[1754806633291,10.16852088,4213.7,4213.6,1e-08]
[1754806633597,11.56131459,4213.7,4213.6,1e-08]
[1754806634742,9.35112088,4213.7,4213.6,1e-08]
[1754806634943,14.04412088,4213.7,4213.6,1e-08]
[1754806635541,12.20012088,4213.7,4213.6,1e-08]
[1754806635738,14.04312088,4213.7,4213.6,1e-08]
[1754806635947,10.66570826,4213.7,4213.6,1e-08]
[1754806636243,7.06621119,4213.7,4213.6,0.92440001]
[1754806636811,5.22221119,4213.7,4213.6,1.14626009]
[1754806637140,7.06621119,4213.7,4213.6,1.14626009]
[1754806637542,7.06621119,4213.7,4213.6,0.22186009]
[1754806637708,7.06621119,4213.7,4213.6,1.19366009]
[1754806637908,7.06621119,4213.7,4213.6,1.1936494]
[1754806638108,7.85103798,4213.7,4213.6,0.2218494]
[1754806638339,7.85103798,4213.7,4213.6,0.22186062]
[1754806638849,10.85103798,4213.7,4213.6,0.22186062]
[1754806639750,10.85103798,4213.7,4213.6,0.69546062]
[1754806640044,10.85103798,4213.7,4213.6,0.22186062]
[1754806640742,11.3597076,4213.7,4213.6,0.22186062]
[1754806640939,10.85103798,4213.7,4213.6,0.22212091]
[1754806641118,10.85103798,4213.7,4213.6,0.69572091]
[1754806641119,10.85003798,4213.7,4213.6,0.69572091]
[1754806641756,10.85003798,4213.7,4213.6,0.22212091]
[1754806642440,9.00703798,4213.7,4213.6,0.69572091]
[1754806642756,10.84903798,4213.7,4213.6,0.22212091]
[1754806643370,11.84353983,4213.7,4213.6,0.22212091]
[1754806643540,12.39353983,4213.7,4213.6,0.22212091]
[1754806643741,12.39353983,4213.7,4213.6,0.22213786]
[1754806644670,9.51593983,4213.7,4213.6,0.22213786]
[1754806644846,11.35793983,4213.7,4213.6,0.22213786]
[1754806645369,11.35793983,4213.7,4213.6,2.59540537]
[1754806645370,3.50890185,4213.7,4213.6,2.59540537]
[1754806645587,1.842,4213.7,4213.6,1.19393786]
[1754806645745,1.842,4213.7,4213.6,0.69573786]
[1754806645948,1.842,4213.7,4213.6,0.22213786]
[1754806645949,4.21521119,4213.7,4213.6,0.22213786]
[1754806646285,8.36921119,4213.7,4213.6,0.22213786]
[1754806646486,11.04920767,4213.7,4213.6,0.22213786]
[1754806646686,11.558423,4213.7,4213.6,0.22213786]
[1754806647539,11.5503672,4213.7,4213.6,0.22213786]
[1754806647873,11.558423,4213.7,4213.6,0.22213786]
[1754806648178,11.566423,4213.7,4213.6,0.22213786]
[1754806648581,2.37361913,4213.0,4212.6,0.04]
[1754806648874,0.1184,4212.7,4212.6,2.91203088]
[1754806649076,1.9674,4212.7,4212.6,2.91203088]
[1754806649282,1.9674,4212.7,4212.6,0.5382]
[1754806649450,1.9674,4212.7,4212.6,1.0118]
[1754806649770,1.9674,4212.7,4212.6,0.5136]
[1754806649970,0.1184,4212.7,4212.6,0.5136]
[1754806650153,1.9674,4212.7,4212.6,0.5136]
[1754806650353,1.9674,4212.7,4212.6,0.04]
[1754806651186,1.9674,4212.7,4212.6,0.5136]
[1754806651949,1.9674,4212.7,4212.6,0.04]
[1754806654357,4.34117453,4212.7,4212.6,0.04]
[1754806654558,5.06328964,4212.7,4212.6,0.04]
[1754806654769,5.06328964,4212.7,4212.6,0.5136]
[1754806655276,4.33817453,4212.7,4212.6,0.5136]
[1754806656294,2.38175779,4212.9,4212.6,0.5136]
[1754806656492,2.849,4213.1,4212.6,0.5136]
[1754806656493,1.9644,4212.7,4212.6,0.04]
[1754806656695,1.9644,4212.7,4212.6,0.5382]
[1754806657201,0.1184,4212.7,4212.6,3.38563088]
[1754806657403,2.849,4213.1,4213.0,2.3736055]
[1754806657706,4.696,4213.1,4213.0,11.74375935]
[1754806658006,1.847,4213.1,4213.0,11.74375935]
[1754806658369,0.1184,4213.9,4213.4,2.37332984]
[1754806658571,0.1184,4213.9,4213.3,0.1184]
[1754806658900,1.847,4213.8,4213.5,2.37332314]
[1754806659115,1.847,4213.7,4213.6,0.9718]
[1754806659272,1.847,4213.7,4213.3,3.42884713]
[1754806659798,1.847,4213.7,4213.6,2.37326751]
[1754806660003,1.847,4213.7,4213.6,3.34506751]
[1754806660401,21.72614895,4214.0,4213.8,2.37314265]
[1754806660593,1.846,4213.9,4213.8,2.37314265]
[1754806660901,1.846,4213.9,4213.8,0.22188369]
[1754806661074,1.846,4213.9,4213.8,0.22188417]
[1754806661274,1.846,4213.9,4213.8,1.19368417]
[1754806662308,1.846,4213.9,4213.8,0.69548417]
[1754806662485,1.846,4213.9,4213.8,1.19368417]
[1754806662686,21.72614895,4214.0,4213.8,1.19368417]
[1754806662869,1.845,4213.9,4213.8,0.4736]
[1754806663272,1.844,4213.9,4213.8,0.4736]
[1754806663498,1.844,4213.9,4213.8,0.9718]
[1754806664138,1.844,4213.9,4213.8,0.4736]
[1754806664542,1.843,4213.9,4213.8,0.9718]
[1754806666140,1.843,4213.9,4213.8,0.4736]
[1754806666523,1.843,4213.9,4213.8,0.22173418]
[1754806666731,6.53313923,4213.9,4213.8,0.22173418]
[1754806667625,2.37315487,4213.8,4213.2,0.4736]
[1754806667833,1.9604,4213.7,4213.3,0.22168684]
[1754806668035,1.9604,4213.7,4213.4,0.68028684]
[1754806668250,1.9604,4213.7,4213.5,0.22168684]
[1754806668456,1.9604,4213.7,4213.6,0.22168684]
[1754806668756,0.1184,4213.7,4213.6,0.22168684]
[1754806668959,1.9604,4213.7,4213.6,0.22168684]
[1754806669177,3.0,4213.6,4213.1,0.09697156]
[1754806669463,2.37366615,4212.9,4211.7,8.28095385]
[1754806669625,1.22087882,4213.5,4212.1,8.27995385]
[1754806669827,0.1184,4213.1,4212.5,8.27995385]
[1754806670062,1.85,4213.0,4211.7,0.001]
[1754806670225,8.27995385,4212.7,4211.7,0.3051]
[1754806670428,1.85,4212.6,4211.7,0.001]
[1754806670672,2.37425016,4211.9,4211.7,0.001]
[1754806670968,1.851,4211.8,4208.6,0.04]
[1754806671172,8.27995385,4210.8,4210.7,0.4586]
[1754806671335,12.50779948,4210.8,4210.7,0.4586]
[1754806671543,1.853,4211.2,4210.7,0.4132]
[1754806671745,10.13295385,4211.1,4208.9,1.425]
[1754806672075,8.27995385,4210.7,4210.1,0.4132]
[1754806672257,2.37448786,4211.5,4210.1,0.4132]
[1754806672258,8.27995385,4210.3,4210.1,0.3132]
[1754806672439,10.13295385,4210.3,4210.1,0.3132]
[1754806672745,10.13295385,4210.3,4208.8,4.17492361]
[1754806672947,1.853,4210.3,4208.8,4.17492361]
[1754806673272,2.37521052,4210.2,4209.0,2.37583633]
[1754806673424,1.855,4210.2,4209.1,0.258]
[1754806673629,10.13495385,4210.2,4209.1,0.258]
[1754806673930,10.13495385,4210.2,4208.8,2.43292361]